bitfinex/quotes_SOLUSD_20241111
["timestamp","ask_amount","ask_price","bid_price","bid_amount"]
[1731355218965,22.7853,218.11,217.96,13.8786485]
[1731355219461,6.37079889,218.1,217.96,13.8786485]
[1731355219808,6.37079889,218.1,218.01,13.8786485]
[1731355219970,6.37079889,218.1,217.93,0.1]
[1731355219971,22.7853,218.11,217.96,20.0]
[1731355220167,22.7853,218.11,218.01,13.8786485]
[1731355220474,22.7853,218.11,218.03,13.8786485]
[1731355220679,22.7853,218.11,218.01,13.8786485]
[1731355221489,20.0,218.1,218.01,13.8786485]
[1731355222801,20.0,218.1,217.96,20.0]
[1731355222983,20.0,218.1,218.0,13.8786485]
[1731355223292,20.0,218.1,218.04,13.8786485]
[1731355223600,20.0,218.1,217.96,20.0]
[1731355223771,20.0,218.1,217.95,15.1187]
[1731355223772,20.0,218.1,217.98,13.8786485]
[1731355224111,20.0,218.1,217.96,13.8786485]
[1731355224670,20.0,218.1,217.94,13.8786485]
[1731355225889,20.0,218.1,217.92,13.8786485]
[1731355226185,20.0,218.08,217.92,13.8786485]
[1731355227097,26.37079889,218.08,217.92,13.8786485]
[1731355227399,21.2954,218.07,217.86,16.1928]
[1731355227590,20.0,218.06,217.89,13.8786485]
[1731355227891,20.0,218.06,217.91,13.8786485]
[1731355228690,20.0,218.06,217.86,0.1]
[1731355228870,20.0,218.04,217.85,13.8786485]
[1731355229292,26.37079889,218.04,217.85,13.8786485]
[1731355229486,26.37079889,218.04,217.87,13.8786485]
[1731355230201,22.2472,218.03,217.87,13.8786485]
[1731355230399,20.0,218.0,217.82,4.78013545]
[1731355230698,20.0,217.98,217.77,0.1]
[1731355230923,20.0,217.98,217.78,4.78158262]
[1731355231191,20.0,217.98,217.83,13.8786485]
[1731355232317,15.5173,217.95,217.73,15.0]
[1731355232472,20.0,217.92,217.73,15.0]
[1731355232671,20.0,217.9,217.73,15.0]
[1731355233099,25.24863756,217.9,217.73,15.0]
[1731355233404,20.0,217.88,217.73,15.0]
[1731355233697,20.0,217.86,217.73,15.0]
[1731355235098,20.0,217.86,217.73,37.23043897]
[1731355235402,22.3224,217.87,217.78,22.23043897]
[1731355235695,6.3334,217.87,217.78,22.23043897]
[1731355236875,6.3334,217.87,217.8,22.23043897]
[1731355237086,22.5661,217.92,217.8,22.23043897]
[1731355238089,22.5661,217.92,217.82,22.23043897]
[1731355240102,22.5661,217.92,217.84,22.23043897]
[1731355240607,6.5771,217.92,217.86,22.23043897]
[1731355241401,6.5771,217.92,217.88,22.23043897]
[1731355241584,6.3226,217.97,217.88,22.23043897]
[1731355242082,6.3226,217.97,217.92,22.23043897]
[1731355242302,6.3226,217.97,217.94,22.23043897]
[1731355242488,6.3226,218.02,217.94,22.23043897]
[1731355242685,6.3226,218.02,217.96,22.23043897]
[1731355243181,6.3226,218.02,217.98,22.23043897]
[1731355243690,21.8493,218.1,217.98,22.23043897]
[1731355244103,21.8493,218.1,218.06,22.23043897]
[1731355244104,6.5285,218.1,218.06,22.23043897]
[1731355244500,21.8493,218.15,218.06,22.23043897]
[1731355245100,21.8493,218.15,218.08,22.23043897]
[1731355245291,21.8493,218.15,218.07,22.23043897]
[1731355245696,21.8493,218.15,218.08,22.23043897]
[1731355246208,21.8493,218.15,218.09,22.23043897]
[1731355247313,21.8493,218.15,218.08,22.23043897]
[1731355248093,21.8493,218.15,218.06,22.23043897]
[1731355248290,21.8493,218.15,218.08,22.23043897]
[1731355248709,6.5285,218.15,218.12,22.23043897]
[1731355248911,6.5285,218.15,218.09,22.23043897]
[1731355249286,6.5285,218.15,218.08,22.23043897]
[1731355249481,6.5285,218.15,218.09,22.23043897]
[1731355250101,20.0,218.14,217.97,16.3987]
[1731355250406,20.0,218.14,218.05,22.23043897]
[1731355250907,20.0,218.14,218.07,22.23043897]
[1731355251112,20.0,218.14,218.05,22.23043897]
[1731355251486,20.0,218.14,217.98,20.0]
[1731355251828,20.0,218.14,218.0,22.23043897]
[1731355252002,20.0,218.14,218.02,22.23043897]
[1731355252189,20.0,218.14,218.0,22.23043897]
[1731355252684,20.0,218.14,217.96,22.23043897]
[1731355252891,20.0,218.12,217.96,22.23043897]
[1731355253296,6.4341,218.11,217.94,22.23043897]
[1731355253484,0.1,218.09,217.9,22.23043897]
[1731355253688,20.0,218.08,217.9,22.23043897]
[1731355253890,20.0,218.05,217.88,22.23043897]
[1731355254195,20.0,218.03,217.86,22.23043897]
[1731355254514,15.5071,218.02,217.84,22.23043897]
[1731355254720,0.2,218.0,217.8,22.23043897]
[1731355255007,20.0,217.98,217.78,22.23043897]
[1731355255210,20.2,217.98,217.78,22.23043897]
[1731355255416,20.1,217.98,217.78,22.23043897]
[1731355256114,20.1,217.98,217.75,15.0]
[1731355256115,20.0,218.0,217.85,22.23043897]
[1731355256410,20.0,218.0,217.82,22.23043897]
[1731355256912,20.0,218.0,217.8,22.23043897]
[1731355257109,0.1,217.99,217.8,22.23043897]
[1731355257308,20.0,217.98,217.8,22.23043897]
[1731355257511,20.38837484,217.98,217.8,22.23043897]
[1731355257711,25.19768463,217.98,217.8,22.23043897]
[1731355257890,0.38837484,217.97,217.8,22.23043897]
[1731355258104,20.0,217.96,217.8,22.23043897]
[1731355258289,20.0,217.96,217.84,22.23043897]
[1731355258908,6.5865,218.01,217.88,22.23043897]
[1731355260005,6.5865,218.01,217.9,22.23043897]
[1731355260691,6.5865,218.01,217.81,6.546]
[1731355260692,6.5865,218.01,217.92,22.23043897]
[1731355260896,6.5865,218.01,217.81,6.546]
[1731355260897,6.5865,218.01,217.96,22.23043897]
[1731355261121,6.2202,218.07,217.96,22.23043897]
[1731355261719,6.2202,218.07,217.81,6.546]
[1731355262036,10.49140117,218.06,217.83,22.23043897]
[1731355262309,10.59140117,218.06,217.83,22.23043897]
[1731355262888,20.1,218.05,217.81,22.23043897]
[1731355263112,20.0,218.01,217.79,22.23043897]
[1731355263306,20.0,217.97,217.79,22.23043897]
[1731355263720,5.19768463,217.96,217.79,22.23043897]
[1731355263901,20.0,217.95,217.79,22.23043897]
[1731355264109,20.0,217.95,217.81,22.23043897]
[1731355264512,20.0,217.97,217.81,22.23043897]
[1731355266330,20.0,217.97,217.83,22.23043897]
[1731355266717,20.0,217.97,217.81,22.23043897]
[1731355268108,16.3272,217.98,217.81,22.23043897]
[1731355269506,20.0,217.97,217.83,22.23043897]
[1731355270312,20.0,217.97,217.81,22.23043897]
[1731355270622,20.0,217.97,217.79,22.23043897]
[1731355270829,20.0,217.93,217.79,22.23043897]
[1731355272325,30.0,217.94,217.83,22.23043897]
[1731355272526,16.3272,217.98,217.85,22.23043897]
[1731355273326,8.46079711,218.02,217.91,22.23043897]
[1731355273327,6.1617,218.02,217.91,22.23043897]
[1731355273618,6.1617,218.02,217.93,22.23043897]
[1731355274002,6.1617,218.02,217.95,22.23043897]
[1731355274200,0.1,218.18,217.97,22.23043897]
[1731355274201,15.5087,218.12,217.97,22.23043897]
[1731355274519,6.2693,218.09,218.01,22.23043897]
[1731355275105,6.2693,218.09,218.03,22.23043897]
[1731355275517,6.5829,218.16,218.05,22.23043897]
[1731355275918,6.5829,218.16,218.03,22.23043897]
[1731355276712,23.776884,218.15,218.01,22.23043897]
[1731355277426,20.0,218.15,218.03,22.23043897]
[1731355278005,6.5829,218.16,218.03,22.23043897]
[1731355279209,20.0,218.15,218.03,22.23043897]
[1731355279409,23.776884,218.14,218.01,22.23043897]
[1731355279639,23.776884,218.14,217.97,22.23043897]
[1731355279640,20.0,218.13,217.97,22.23043897]
[1731355279840,25.19768463,218.13,217.97,22.23043897]
[1731355280204,25.19768463,218.13,217.99,22.23043897]
[1731355280504,20.0,218.13,218.01,22.23043897]
[1731355281047,20.0,218.15,218.01,22.23043897]
[1731355281407,20.0,218.15,217.96,0.1]
[1731355281611,20.38837484,218.15,218.01,22.23043897]
[1731355281812,24.80930979,218.15,218.03,22.23043897]
[1731355282026,6.5829,218.16,218.03,22.23043897]
[1731355282213,6.5829,218.16,218.05,22.23043897]
[1731355284016,6.5829,218.16,218.04,22.23043897]
[1731355284629,20.0,218.15,218.04,22.23043897]
[1731355285129,20.0,218.15,218.06,22.23043897]
[1731355285325,20.0,218.15,218.08,22.23043897]
[1731355285545,20.0,218.15,218.06,22.23043897]
[1731355285835,20.0,218.15,218.04,22.23043897]
[1731355286033,20.0,218.15,218.08,22.23043897]
[1731355286424,20.0,218.13,217.87,16.5183]
[1731355286625,23.776884,218.08,217.94,22.23043897]
[1731355286818,20.0,218.07,217.94,22.23043897]
[1731355287140,20.0,218.07,217.96,22.23043897]
[1731355287340,20.0,218.11,217.96,22.23043897]
[1731355287541,20.0,218.09,217.96,22.23043897]
[1731355287848,20.7785654,218.09,217.96,22.23043897]
[1731355288225,20.7785654,218.09,217.94,22.23043897]
[1731355288537,20.7785654,218.09,217.96,22.23043897]
[1731355288723,23.776884,218.13,217.98,22.23043897]
[1731355289044,20.0,218.1,217.96,22.23043897]
[1731355289337,20.38837484,218.1,217.96,22.23043897]
[1731355289921,20.77674968,218.1,217.96,22.23043897]
[1731355290530,0.77674968,218.1,217.98,22.23043897]
[1731355290737,6.5829,218.16,218.02,22.23043897]
[1731355291266,6.5829,218.16,217.92,20.0]
[1731355291267,6.5829,218.16,218.06,22.23043897]
[1731355291730,6.5829,218.16,218.03,46.00732297]
[1731355292113,6.5829,218.16,218.03,22.23043897]
[1731355292313,6.5829,218.16,218.02,23.776884]
[1731355292542,20.0,218.15,218.02,23.776884]
[1731355292838,20.0,218.15,217.99,22.23043897]
[1731355293047,20.0,218.13,217.97,22.23043897]
[1731355293228,20.0,218.13,218.0,23.776884]
[1731355293433,20.0,218.15,218.0,23.776884]
[1731355293848,20.0,218.15,218.01,22.23043897]
[1731355294154,20.0,218.15,218.0,23.776884]
[1731355295451,20.0,218.15,218.01,22.23043897]
[1731355295826,20.0,218.15,218.03,22.23043897]
[1731355296025,6.5829,218.16,218.03,22.23043897]
[1731355296231,6.5829,218.16,218.04,23.776884]
[1731355296432,6.5829,218.16,218.03,22.23043897]
[1731355297133,6.5829,218.16,217.99,0.1]
[1731355297335,6.5829,218.16,218.03,23.776884]
[1731355297336,20.0,218.15,218.03,23.776884]
[1731355297538,20.0,218.15,218.04,22.23043897]
[1731355297942,6.5829,218.16,218.07,23.776884]
[1731355299025,6.4466,218.24,218.07,23.776884]
[1731355299446,20.0,218.22,218.07,23.776884]
[1731355300138,20.0,218.22,218.06,22.23043897]
[1731355300336,6.4466,218.24,218.1,22.23043897]
[1731355300631,6.4466,218.24,218.07,23.776884]
[1731355300632,6.4466,218.24,218.12,22.23043897]
[1731355300825,6.4466,218.24,218.1,22.23043897]
[1731355301727,20.0,218.23,218.1,22.23043897]
[1731355302124,23.776884,218.22,218.08,22.23043897]
[1731355302352,20.0,218.21,218.08,22.23043897]
[1731355303232,20.0,218.23,218.1,22.23043897]
[1731355303647,20.0,218.23,218.12,22.23043897]
[1731355305353,20.0,218.23,218.1,22.23043897]
[1731355305655,20.0,218.23,218.12,22.23043897]
[1731355308136,6.4466,218.24,218.12,22.23043897]
[1731355308659,20.0,218.23,218.12,22.23043897]
[1731355308960,6.4466,218.24,218.12,22.23043897]
[1731355313552,43.776884,218.23,217.99,16.0484]
[1731355313751,43.776884,218.23,218.08,22.23043897]
[1731355313947,43.776884,218.23,218.1,22.23043897]
[1731355314463,6.4466,218.24,218.14,22.23043897]
[1731355314653,6.4466,218.24,218.12,22.23043897]
[1731355314962,23.776884,218.23,218.1,22.23043897]
[1731355315935,20.0,218.2,218.1,22.23043897]
[1731355315941,13.6769542,218.32,218.12,22.23043897]
[1731355316138,6.6031,218.32,218.16,22.23043897]
[1731355317857,23.776884,218.3,218.16,22.23043897]
[1731355318250,20.0,218.27,218.16,22.23043897]
[1731355318450,20.0,218.25,218.05,22.6257]
[1731355318647,20.0,218.25,218.13,22.23043897]
[1731355319850,21.4081,218.24,218.11,22.23043897]
[1731355320262,20.0,218.23,218.11,22.23043897]
[1731355320468,23.776884,218.18,218.05,22.23043897]
[1731355320646,23.776884,218.16,218.03,22.23043897]
[1731355321756,15.8738,218.14,217.96,18.48585493]
[1731355321955,23.776884,218.11,217.99,22.23043897]
[1731355322152,23.776884,218.11,218.01,22.23043897]
[1731355322856,23.776884,218.13,217.99,22.23043897]
[1731355323061,23.776884,218.11,217.99,22.23043897]
[1731355323762,20.0,218.1,217.99,22.23043897]
[1731355323953,6.1921,218.06,217.94,22.23043897]
[1731355324160,23.776884,218.05,217.94,22.23043897]
[1731355324548,23.776884,218.05,217.96,22.23043897]
[1731355325154,23.776884,218.05,217.94,22.23043897]
[1731355325758,23.776884,218.05,217.88,16.2585]
[1731355325759,20.0,218.02,217.88,22.23043897]
[1731355326064,16.0714,218.04,217.8,28.26473897]
[1731355326065,23.776884,217.99,217.87,22.23043897]
[1731355326581,23.776884,217.97,217.88,22.23043897]
[1731355326762,20.0,217.98,217.88,22.23043897]
[1731355327077,20.0,218.03,217.92,22.23043897]
[1731355327380,20.0,218.03,217.81,4.77960127]
[1731355327381,43.776884,218.03,217.89,22.23043897]
[1731355327964,43.776884,218.03,217.81,4.77960127]
[1731355328163,43.776884,218.03,217.86,22.23043897]
[1731355328361,43.776884,218.01,217.86,22.23043897]
[1731355328560,43.776884,218.01,217.84,22.23043897]
[1731355329053,43.776884,218.01,217.82,22.23043897]
[1731355329257,15.8425,217.99,217.82,22.23043897]
[1731355329480,20.0,217.98,217.82,22.23043897]
[1731355329676,43.776884,217.98,217.8,22.23043897]
[1731355330361,0.65,217.96,217.82,22.23043897]
[1731355330577,23.776884,217.95,217.82,22.23043897]
[1731355330785,20.0,217.94,217.82,22.23043897]
[1731355330970,23.776884,217.93,217.82,22.23043897]
[1731355331562,15.8425,217.99,217.84,22.23043897]
[1731355331764,15.8425,217.99,217.86,22.23043897]
[1731355331765,23.776884,217.98,217.86,22.23043897]
[1731355332078,23.776884,217.98,217.84,22.23043897]
[1731355333253,20.0,217.97,217.86,22.23043897]
[1731355333464,23.776884,217.96,217.84,22.23043897]
[1731355333662,20.0,217.95,217.82,22.23043897]
[1731355333875,20.0,217.93,217.77,20.0]
[1731355334073,20.0,217.93,217.8,22.23043897]
[1731355334462,23.776884,217.94,217.82,22.23043897]
[1731355334862,23.776884,217.94,217.84,22.23043897]
[1731355335075,23.776884,217.94,217.81,22.23043897]
[1731355336708,29.876884,217.92,217.79,22.23043897]
[1731355336880,20.0,217.89,217.75,15.0]
[1731355337072,23.776884,217.86,217.75,15.0]
[1731355337574,20.0,217.85,217.75,15.0]
[1731355338261,23.776884,217.86,217.75,37.23043897]
[1731355339876,23.776884,217.86,217.75,15.0]
[1731355340186,23.776884,217.82,217.75,15.0]
[1731355340454,23.776884,217.8,217.75,15.0]
[1731355341191,43.776884,217.78,217.75,15.0]
[1731355341505,6.319,217.77,217.75,15.0]
[1731355341665,23.776884,217.76,217.75,15.0]
[1731355343386,6.319,217.77,217.75,15.0]
[1731355344923,6.5245,217.82,217.75,15.0]
[1731355348677,15.6183,217.85,217.76,22.23043897]
[1731355348878,6.1848,217.88,217.78,22.23043897]
[1731355350391,6.1848,217.93,217.82,22.23043897]
[1731355351294,6.1848,217.93,217.84,22.23043897]
[1731355352287,6.1848,217.93,217.82,22.23043897]
[1731355352684,6.1848,217.93,217.77,20.0]
[1731355352883,6.1848,217.93,217.77,22.23043897]
[1731355352884,20.0,217.92,217.77,22.23043897]
[1731355353092,20.0,217.92,217.75,15.0]
[1731355353310,0.87674968,217.91,217.75,15.0]
[1731355353603,23.776884,217.88,217.75,15.0]
[1731355353804,23.776884,217.86,217.75,15.0]
[1731355354319,46.755684,217.84,217.75,15.0]
[1731355354679,23.776884,217.82,217.75,15.0]
[1731355354880,20.0,217.81,217.75,15.0]
[1731355355081,20.0,217.79,217.75,15.0]
[1731355355670,23.776884,217.76,217.75,15.0]
[1731355355886,43.776884,217.76,217.75,15.0]
[1731355356099,20.0,217.75,217.73,15.0]
[1731355356309,0.87674968,217.81,217.39,50.13080116]
[1731355356310,43.776884,217.72,217.59,22.23043897]
[1731355357500,43.776884,217.72,217.58,22.23043897]
[1731355358481,43.776884,217.72,217.6,22.23043897]
[1731355358683,23.776884,217.72,217.62,22.23043897]
[1731355358892,6.4288,217.73,217.62,22.23043897]
[1731355359089,6.4288,217.73,217.64,22.23043897]
[1731355360698,23.776884,217.78,217.66,22.23043897]
[1731355360902,6.4288,217.86,217.72,22.23043897]
[1731355361207,6.4288,217.86,217.74,22.23043897]
[1731355361796,6.4288,217.86,217.65,43.776884]
[1731355362096,6.4288,217.86,217.72,22.23043897]
[1731355362309,23.776884,217.85,217.72,22.23043897]
[1731355362781,6.4288,217.86,217.72,22.23043897]
[1731355363196,6.4288,217.86,217.65,43.776884]
[1731355363509,6.4288,217.86,217.72,22.23043897]
[1731355363801,20.0,217.85,217.72,22.23043897]
[1731355364189,20.0,217.83,217.72,22.23043897]
[1731355364681,20.0,217.83,217.68,22.23043897]
[1731355364996,23.776884,217.78,217.64,22.23043897]
[1731355365211,20.0,217.75,217.54,15.0918]
[1731355365382,20.0,217.75,217.63,22.23043897]
[1731355366676,20.0,217.78,217.67,22.23043897]
[1731355367613,23.776884,217.81,217.67,22.23043897]
[1731355367806,20.0,217.78,217.61,23.776884]
[1731355367983,20.0,217.78,217.65,22.23043897]
[1731355368331,20.0,217.79,217.65,22.23043897]
[1731355368481,20.0,217.75,217.61,22.23043897]
[1731355368680,20.0,217.73,217.61,22.23043897]
[1731355368894,20.0,217.71,217.58,22.23043897]
[1731355369277,29.55234641,217.7,217.58,22.23043897]
[1731355369800,23.776884,217.7,217.58,22.23043897]
[1731355370398,6.119,217.73,217.6,22.23043897]
[1731355370602,6.119,217.73,217.64,22.23043897]
[1731355370812,26.6174,217.8,217.64,22.23043897]
[1731355370993,26.6174,217.8,217.66,22.23043897]
[1731355371298,31.62568169,217.8,217.64,22.23043897]
[1731355372204,20.0,217.78,217.64,22.23043897]
[1731355372594,23.776884,217.77,217.64,22.23043897]
[1731355373394,23.776884,217.79,217.66,22.23043897]
[1731355374595,6.6174,217.8,217.7,22.23043897]
[1731355375004,6.2605,217.85,217.72,22.23043897]
[1731355375217,6.2605,217.85,217.74,22.23043897]
[1731355375418,6.2605,217.85,217.76,22.23043897]
[1731355375614,6.2137,217.92,217.76,22.23043897]
[1731355375918,6.2137,217.92,217.78,22.23043897]
[1731355376712,20.0,217.9,217.78,22.23043897]
[1731355377100,20.0,217.91,217.78,22.23043897]
[1731355377407,20.0,217.91,217.76,22.23043897]
[1731355377601,5.00918955,217.9,217.76,22.23043897]
[1731355377807,5.00918955,217.9,217.78,22.23043897]
[1731355378201,6.2137,217.92,217.8,22.23043897]
[1731355378920,6.2137,217.92,217.78,22.23043897]
[1731355379315,23.776884,217.91,217.78,22.23043897]
[1731355379487,6.2137,217.92,217.78,22.23043897]
[1731355380512,6.2137,217.92,217.82,22.23043897]
[1731355380810,6.2137,217.98,217.84,22.23043897]
[1731355382190,20.0,217.97,217.84,22.23043897]
[1731355382392,6.2137,217.98,217.84,22.23043897]
[1731355382694,23.776884,217.97,217.84,22.23043897]
[1731355382893,23.776884,217.97,217.86,22.23043897]
[1731355383108,6.2137,217.98,217.88,22.23043897]
[1731355383521,11.3383,218.06,217.9,22.23043897]
[1731355383697,6.4386,218.05,217.92,22.23043897]
[1731355383899,6.4386,218.05,217.94,22.23043897]
[1731355385007,6.4386,218.05,217.92,22.23043897]
[1731355385199,20.0,218.04,217.9,22.23043897]
[1731355385396,20.0,218.04,217.88,22.23043897]
[1731355385604,23.776884,218.01,217.86,22.23043897]
[1731355385801,23.776884,217.99,217.86,22.23043897]
[1731355386806,14.62458582,218.05,217.88,22.23043897]
[1731355387115,23.776884,218.04,217.9,22.23043897]
[1731355387323,23.776884,218.04,217.88,22.23043897]
[1731355387493,23.776884,218.04,217.86,22.23043897]
[1731355387697,23.776884,218.02,217.86,22.23043897]
[1731355388196,20.0,218.01,217.92,0.61]
[1731355388408,23.776884,217.98,217.92,0.61]
[1731355391327,23.776884,218.03,217.92,0.61]
[1731355391412,23.776884,218.04,217.92,0.61]
[1731355391802,6.4386,218.05,217.92,0.61]
[1731355392134,6.4386,218.05,217.94,22.23043897]
[1731355392301,6.4386,218.05,217.96,22.23043897]
[1731355392495,6.4386,218.05,217.92,22.84043897]
[1731355393323,6.4386,218.05,217.94,22.23043897]
[1731355393626,23.776884,218.04,217.92,0.61]
[1731355393998,23.776884,218.02,217.92,0.61]
[1731355394198,6.4386,218.05,217.92,0.61]
[1731355394600,23.776884,218.04,217.92,0.61]
[1731355395333,23.776884,218.02,217.92,0.61]
[1731355395498,23.776884,218.0,217.92,0.61]
[1731355396414,20.0,217.99,217.92,0.61]
[1731355396621,23.776884,217.98,217.92,0.61]
[1731355397006,43.776884,218.04,217.92,0.61]
[1731355398017,6.4386,218.05,217.93,22.23043897]
[1731355398225,6.3849,218.1,217.93,22.23043897]
[1731355399098,6.3849,218.1,217.92,0.61]
[1731355399297,6.5849,218.1,217.92,0.61]
[1731355399510,28.78607355,218.09,217.92,0.61]
[1731355399700,20.0,218.08,217.92,0.61]
[1731355399907,23.776884,218.07,217.92,0.61]
[1731355400102,20.0,218.04,217.92,0.61]
[1731355400306,23.776884,218.03,217.92,0.61]
[1731355400924,23.776884,218.05,217.92,0.61]
[1731355401124,23.776884,218.03,217.92,0.61]
[1731355402113,23.776884,218.03,217.92,22.84043897]
[1731355402809,23.776884,218.03,217.92,0.61]
[1731355403527,20.0,218.02,217.92,0.61]
[1731355403711,23.776884,218.01,217.92,0.61]
[1731355405225,23.776884,218.03,217.92,0.61]
[1731355405529,23.776884,218.01,217.92,0.61]
[1731355406718,23.776884,217.99,217.92,0.61]
[1731355407516,23.776884,217.97,217.92,0.61]
[1731355408834,20.0,217.96,217.92,0.61]
[1731355409046,43.776884,217.93,217.92,0.61]
[1731355409338,20.0,217.92,217.77,15.2478]
[1731355409506,23.776884,217.89,217.77,15.2478]
[1731355412118,6.0838,217.87,217.72,15.8034]
[1731355412437,43.776884,217.86,217.72,15.8034]
[1731355412733,8.52326989,217.85,217.72,15.8034]
[1731355412915,43.776884,217.86,217.72,15.8034]
[1731355414032,46.00951975,217.86,217.72,15.8034]
[1731355414230,43.776884,217.86,217.72,15.8034]
[1731355414942,43.776884,217.84,217.67,15.9918]
[1731355415128,43.776884,217.84,217.67,38.22223897]
[1731355415336,43.776884,217.84,217.69,22.23043897]
[1731355415552,43.776884,217.84,217.71,22.23043897]
[1731355415553,23.776884,217.84,217.71,22.23043897]
[1731355415708,23.776884,217.86,217.71,22.23043897]
[1731355416033,23.776884,217.86,217.73,22.23043897]
[1731355417633,20.0,217.85,217.71,22.23043897]
[1731355417831,23.776884,217.84,217.69,22.23043897]
[1731355418043,23.776884,217.86,217.69,22.23043897]
[1731355418334,23.776884,217.84,217.71,22.23043897]
[1731355418723,6.0838,217.87,217.71,22.23043897]
[1731355418724,43.776884,217.86,217.71,22.23043897]
[1731355419445,23.776884,217.86,217.73,22.23043897]
[1731355419741,23.776884,217.86,217.75,22.23043897]
[1731355420239,6.09,217.92,217.75,22.23043897]
[1731355420731,20.0,217.91,217.75,22.23043897]
[1731355421140,20.0,217.91,217.69,22.23043897]
[1731355421141,20.0,217.91,217.77,22.23043897]
[1731355421718,23.776884,217.9,217.79,22.23043897]
[1731355422012,11.3383,217.94,217.79,38.63613897]
[1731355422942,30.0,217.95,217.79,38.63613897]
[1731355423234,30.0,217.95,217.81,22.23043897]
[1731355423735,8.78012813,217.97,217.81,22.23043897]
[1731355423939,23.776884,217.95,217.81,22.23043897]
[1731355424916,23.776884,217.98,217.83,22.23043897]
[1731355426042,20.0,218.01,217.85,22.23043897]
[1731355426352,11.3383,218.04,217.89,22.23043897]
[1731355426922,11.3383,218.04,217.87,22.23043897]
[1731355427447,2.25011365,218.06,217.9,16.2319]
[1731355427448,23.776884,218.05,217.9,16.2319]
[1731355427831,23.776884,218.06,217.9,16.2319]
[1731355428040,6.3721,218.07,217.9,16.2319]
[1731355430632,20.0,218.06,217.9,16.2319]
[1731355431117,20.0,218.06,217.91,22.23043897]
[1731355431525,6.3721,218.07,217.91,22.23043897]
[1731355431941,23.776884,218.06,217.91,22.23043897]
[1731355432243,23.776884,218.08,217.93,22.23043897]
[1731355432745,20.0,218.05,217.93,22.23043897]
[1731355433334,23.776884,218.06,217.93,22.23043897]
[1731355433535,23.776884,218.06,217.95,22.23043897]
[1731355433719,23.776884,218.06,217.9,16.2319]
[1731355433927,23.776884,218.06,217.91,22.23043897]
[1731355434632,23.776884,218.04,217.91,22.23043897]
[1731355435723,20.0,218.03,217.9,16.2319]
[1731355435950,23.776884,218.0,217.9,16.2319]
[1731355436540,20.0,217.99,217.87,6.2425]
[1731355436722,23.776884,217.98,217.87,6.2425]
[1731355437443,23.776884,217.98,217.84,15.3342]
[1731355439144,23.776884,217.96,217.84,15.3342]
[1731355440446,6.2545,218.08,217.95,22.23043897]
[1731355441149,6.2545,218.08,217.95,16.4194]
[1731355441523,6.2545,218.08,217.93,22.23043897]
[1731355441728,6.2545,218.08,217.91,22.23043897]
[1731355441929,20.0,218.07,217.91,22.23043897]
[1731355443047,20.0,218.05,217.93,22.23043897]
[1731355443232,23.776884,218.04,217.93,22.23043897]
[1731355445045,23.776884,218.04,217.91,22.23043897]
[1731355445248,23.776884,218.0,217.9,16.4521]
[1731355447029,12.06934006,218.08,217.93,22.23043897]
[1731355447331,23.776884,218.03,217.9,16.4521]
[1731355447835,23.776884,218.03,217.91,22.23043897]
[1731355448040,23.776884,218.01,217.9,16.4521]
[1731355448856,23.776884,217.99,217.87,22.23043897]
[1731355449155,20.0,217.98,217.85,37.67293897]
[1731355449457,23.776884,217.97,217.85,37.67293897]
[1731355449746,23.776884,217.97,217.85,15.4425]
[1731355450451,23.776884,217.97,217.85,37.67293897]
[1731355450749,23.776884,217.97,217.87,22.23043897]
[1731355450934,23.776884,217.97,217.89,22.23043897]
[1731355451554,23.776884,217.97,217.87,22.23043897]
[1731355452547,23.776884,217.97,217.85,15.4425]
[1731355453056,23.776884,217.97,217.86,22.23043897]
[1731355453940,11.36949136,218.06,217.88,22.23043897]